Cogmind - Beta 15 @@@ ROGUE MODE // 2025.10.19 @ 17:57:14 Player: Boatsandjoes Result: Destroyed by G-34 Mercenary with Small Laser Performance ------------- Evolutions (1) 500 Regions Visited (4) 800 Robots Destroyed (9) 45 Value Destroyed (274) 274 Prototype IDs (0) 0 Alien Tech Used (0) 0 Bonus (0) 0 TOTAL SCORE: 1619 Bonus ------- None Cogmind --------- Core Integrity 0/400 Matter 300/300 Energy 158/160 System Corruption 0% Temperature Cool (67) Movement Walking (120) Location -9/Storage Parts ------- > --- POWER (1) -------- Light Nuclear Core > --- PROPULSION (4) --- Aluminum Leg > --- UTILITY (2) ------ Small Storage Unit > --- WEAPON (2) ------- (None) > --- INVENTORY (8) ---- Hardened Light Armor Plating Peak State ------------ > --- POWER ------------ Light Nuclear Core > --- PROPULSION ------- Aluminum Leg Aluminum Leg Aluminum Leg Aluminum Leg > --- UTILITY ---------- Small Storage Unit Improved Sensor Array > --- WEAPON ----------- Beam Rifle Heavy Assault Rifle > --- INVENTORY -------- Light Nuclear Core Aluminum Leg Aluminum Leg Light Armor Plating Hardened Light Armor Plating EM Pulse Gun Medium Laser [Rating: 16] Favorites ----------- Power Ion Engine Engine Ion Engine Power Core Light Nuclear Core Propulsion Aluminum Leg Leg Aluminum Leg Utility Small Storage Unit Device Improved Sensor Array Storage Small Storage Unit Protection Hardened Light Armor Plating Weapon Medium Laser Energy Gun Medium Laser Ballistic Gun Light Assault Rifle Build | -11 -10 -10 -9 -9 ------- Run | Yrd Mat Min Mat Sto Slots Evolved 2 | . . . 2 . Power . | . . . . . Propulsion 2 | . . . 2 . Utility . | . . . . . Weapon . | . . . . . Parts Attached 20 | 6 3 . 6 5 Power 3 | 1 . . 1 1 Engine 1 | 1 . . . . Core 2 | . . . 1 1 Reactor . | . . . . . Propulsion 6 | 2 . . 2 2 Treads . | . . . . . Leg 6 | 2 . . 2 2 Wheel . | . . . . . Hover . | . . . . . Flight . | . . . . . Utility 5 | 1 2 . 1 1 Device 1 | . . . 1 . Storage 2 | 1 1 . . . Processor . | . . . . . Hackware . | . . . . . Protection 2 | . 1 . . 1 Artifact . | . . . . . Weapon 6 | 2 1 . 2 1 Energy Gun 3 | 1 . . 1 1 Energy Cannon . | . . . . . Ballistic Gun 3 | 1 1 . 1 . Ballistic Cannon . | . . . . . Launcher . | . . . . . Special Weapon . | . . . . . Impact Weapon . | . . . . . Slashing Weapon . | . . . . . Piercing Weapon . | . . . . . Special Melee Weapon . | . . . . . Unidentified Prototypes . | . . . . . Parts Lost 12 | . . . . 12 Power 1 | . . . . 1 Propulsion 5 | . . . . 5 Utility 2 | . . . . 2 Weapon 4 | . . . . 4 Highest Loss Streak 12 | . . . . 12 To Critical Strikes . | . . . . . Average Backups 6 | 4 7 7 6 6 Power . | . 1 1 . . Propulsion 2 | 2 4 4 2 1 Utility 1 | . . 1 1 1 Weapon 1 | 1 1 1 1 1 Tool/Special . | . . . . . Unused Backups 9 | . 4 3 2 . Power 1 | . . . 1 . Propulsion 5 | . 4 1 . . Utility 3 | . . 2 1 . Weapon . | . . . . . Tool/Special . | . . . . . Average Slot Usage (%) 96 | . 97 100 99 86 Engine 7 | . 14 14 2 . Core 5 | . . . 8 10 Leg 34 | . 28 28 43 36 Device 4 | . . . 8 8 Storage 13 | . 16 14 11 11 Protection 6 | . 9 14 2 . Energy Gun 12 | . 14 14 11 10 Ballistic Gun 11 | . 14 14 11 8 Peak Build Rating 16 | 6 8 9 16 16 Average Rating 10 | 4 7 8 13 13 On Entrance 7 | . 6 8 9 16 Naked Turns . | . . . . . Heaviest Build 19 | 14 19 18 18 17 Greatest Support 40 | 20 20 20 40 40 Greatest Overweight (x) 1 | 1 . . . . Average Overweight (x) . | . . . . . Largest Inventory Capacity 8 | 8 8 8 8 8 Average Capacity 7 | 7 8 8 8 8 Most Carried 8 | 8 8 8 8 7 Average Carried 6 | 4 7 7 6 6 Final Capacity 8 | 8 8 8 8 8 Final Carried 8 | 6 8 8 7 1 Class Distribution -------------------- 78% | Mutant 21% | Scavenger-Mutant Dominant Class ---------------- Mutant | -10/Materials Mutant | -10/Mines Mutant | -9/Materials Scavenger-Mutant | -9/Storage Resources | -11 -10 -10 -9 -9 ----------- Run | Yrd Mat Min Mat Sto Matter Collected 434 | 201 107 7 69 50 Remotely . | . . . . . Salvage Created 433 | . 57 18 111 247 Parts 15 | . 5 1 5 4 Haulers Intercepted . | . . . . . Recyclers Shooed . | . . . . . Parts Field Recycled . | . . . . . Retrieved Matter . | . . . . . Parts Self-Destructed . | . . . . . Prevented . | . . . . . Kills | -11 -10 -10 -9 -9 ------- Run | Yrd Mat Min Mat Sto Combat Hostiles Destroyed 8 | . 2 1 2 3 Guns 8 | . 2 1 2 3 Classes Destroyed 4 | . 2 . 1 1 Recycler 1 | . . . . 1 Swarmer 2 | . 1 1 . . Grunt 2 | . 1 . . 1 Sentry 4 | . . . 2 2 Best Kill Streak 4 | . 1 1 2 4 Combat Bots Only 3 | . 1 1 2 3 Max Kills in Single Turn 1 | . 1 1 1 1 Gunslinging . | . . . . . Exploded . | . . . . . Melee . | . . . . . Uniques/NPCs Destroyed . | . . . . . Combat | -11 -10 -10 -9 -9 -------- Run | Yrd Mat Min Mat Sto Hostile Shots Fired 185 | . 22 4 18 141 Missed 49 | . 6 1 2 40 Hits 136 | . 16 3 16 101 Projectile 136 | . 16 3 16 101 Critical Strikes 8 | . . 1 2 5 Damage Taken 1678 | . 164 51 236 1227 Core 449 | . 49 . 41 359 Absorbed by Shields . | . . . . . Core Remaining (%) 90 | 100 . 80 . . Volleys Fired 34 | . 11 2 9 12 Largest 2 | . 2 2 2 2 Hottest 90 | . 70 70 70 90 Shots Fired 58 | . 16 4 18 20 Gun 58 | . 16 4 18 20 Cannon . | . . . . . Launcher . | . . . . . Special . | . . . . . Kinetic 29 | . 11 2 9 7 Thermal 28 | . 5 2 9 12 Explosive . | . . . . . Electromagnetic 1 | . . . . 1 Robot Hit Streak 11 | . 3 4 11 6 Robot Miss Streak 2 | . 2 1 2 1 Penetration Max . | . . . . . Secondary Targets 2 | . . . 1 1 Max Gunslinging Chain 1 | . . . 1 1 Shots Hit Robots 42 | . 9 2 14 17 Core Hits 17 | . 3 1 6 7 Critical Kills . | . . . . . Critical Parts Destroyed . | . . . . . Critical Strikes 3 | . . . 1 2 Burn 3 | . . . 1 2 Melee Attacks . | . . . . . Impact . | . . . . . Slashing . | . . . . . Piercing . | . . . . . Sneak Attacks . | . . . . . Combat Hostiles . | . . . . . Follow-up Attacks . | . . . . . Damage Inflicted 552 | . 138 16 146 252 Guns 552 | . 138 16 146 252 Cannons . | . . . . . Explosions . | . . . . . Melee . | . . . . . Ramming . | . . . . . Kinetic 253 | . 88 16 57 92 Thermal 288 | . 50 . 89 149 Explosive . | . . . . . Electromagnetic 11 | . . . . 11 Impact . | . . . . . Slashing . | . . . . . Piercing . | . . . . . Highest Corruption . | . . . . . Average Corruption . | . . . . . Corruption Purged . | . . . . . Corruption Blocked . | . . . . . Overload Shots . | . . . . . Overflow Damage . | . . . . . Projectiles . | . . . . . Explosions . | . . . . . Melee . | . . . . . Knockbacks . | . . . . . Impact . | . . . . . Kinetic . | . . . . . Secondary . | . . . . . Self-Inflicted Damage . | . . . . . Shots . | . . . . . Rammed . | . . . . . Targets Rammed . | . . . . . Kicked . | . . . . . Crushed . | . . . . . Highest Temperature 263 | . 185 65 204 263 Average Temperature 121 | . 87 35 105 160 Received Heat Transfer 609 | . 42 . 108 459 Effects 1 | . . . . 1 Energy Bleed 1 | . . . . 1 Siege Activations . | . . . . . Martial Activations . | . . . . . Shielding Activations . | . . . . . Robots Disrupted . | . . . . . Combat Hostiles . | . . . . . Robots Corrupted . | . . . . . Combat Hostiles . | . . . . . Parts Fried . | . . . . . Impact Corruptions . | . . . . . Robots Melted . | . . . . . Combat Hostiles . | . . . . . Parts Melted 4 | . . . 2 2 Heat Transferred 1036 | . 148 . 333 555 Parts Sabotaged . | . . . . . Parts Stolen . | . . . . . Parts Stripped . | . . . . . Power Chain Reactions . | . . . . . Alert | -11 -10 -10 -9 -9 ------- Run | Yrd Mat Min Mat Sto Maximum Alert Level . | . . . . . Low Security (%) 100 | 100 100 100 100 100 Level 1 . | . . . . . Level 2 . | . . . . . Level 3 . | . . . . . Level 4 . | . . . . . Level 5 . | . . . . . High Security . | . . . . . Max Security . | . . . . . Peak Influence 50 | . 45 46 50 30 Initial 3 | . . 1 . 3 Average 9 | . 15 15 9 3 Influence Increases 265 | . 65 45 60 95 Destroy 0b10 Robot/C 160 | . 40 20 40 60 Destroy 0b10 Robot/NC 5 | . . . . 5 Destroy Leader 70 | . 10 10 20 30 Lose Combat Pursuer 30 | . 15 15 . . Influence Decreases 265 | . 60 50 50 105 Entered New Map 11 | . . 4 . 7 Time Decay 179 | . 60 46 50 23 Lost Part 75 | . . . . 75 Squads Dispatched 5 | . 2 . . 3 Investigation 2 | . 1 . . 1 Extermination . | . . . . . Reinforcement 3 | . 1 . . 2 Assault . | . . . . . Garrison . | . . . . . Intercept . | . . . . . Searches Triggered . | . . . . . Construction Impeded . | . . . . . Haulers Reinforced . | . . . . . Active Scanning Responses . | . . . . . Cargo Convoy Interrupts . | . . . . . Stealth | -11 -10 -10 -9 -9 --------- Run | Yrd Mat Min Mat Sto Distress Signals 3 | . 1 . . 2 Communications Jammed . | . . . . . Distress Signals . | . . . . . Times Spotted 27 | . 3 4 3 17 Peak Tracking Total 11 | . 2 2 2 11 Tactical Retreats 2 | . 1 1 . . Traps | -11 -10 -10 -9 -9 ------- Run | Yrd Mat Min Mat Sto Traps Triggered 1 | . 1 . . . Indirectly . | . . . . . Trap Hack Attempts . | . . . . . Triggered . | . . . . . Disarmed . | . . . . . Reprogrammed . | . . . . . Reused . | . . . . . Traps Extracted . | . . . . . Installed . | . . . . . Triggered . | . . . . . Machines | -11 -10 -10 -9 -9 ---------- Run | Yrd Mat Min Mat Sto Machines Disabled . | . . . . . Max in Single Turn . | . . . . . Machines Repaired . | . . . . . Machines Dismantled . | . . . . . Machines Sabotaged . | . . . . . Overloaded Fab Kills . | . . . . . Hacking | -11 -10 -10 -9 -9 --------- Run | Yrd Mat Min Mat Sto Machines Accessed 5 | . 3 . . 2 Terminals 4 | . 2 . . 2 Fabricators . | . . . . . Repair Stations . | . . . . . Recycling Units 1 | . 1 . . . Scanalyzers . | . . . . . Garrison Access . | . . . . . Total Hacks 19 | . 10 . . 9 Successful 7 | . 5 . . 2 Failed 12 | . 5 . . 7 Catastrophic 2 | . . . . 2 Database Lockouts . | . . . . . Manual 14 | . 5 . . 9 Terminals 16 | . 7 . . 9 Fabricators . | . . . . . Repair Stations . | . . . . . Recycling Units 3 | . 3 . . . Scanalyzers . | . . . . . Garrison Access . | . . . . . Terminal Hacks 7 | . 5 . . 2 Record 6 | . 5 . . 1 Alert Level 1 | . . . . 1 Fabricator Hacks . | . . . . . Repair Station Hacks . | . . . . . Recycling Unit Hacks . | . . . . . Scanalyzer . | . . . . . Garrison Access Hacks . | . . . . . Unauthorized Hacks . | . . . . . Terminals . | . . . . . Fabricators . | . . . . . Repair Stations . | . . . . . Recycling Units . | . . . . . Scanalyzers . | . . . . . Garrison Access . | . . . . . Data Cores Recovered . | . . . . . Used . | . . . . . Hacking Detections 5 | . 3 . . 2 Full Trace Events 1 | . . . . 1 Feedback Events . | . . . . . Feedback Blocked . | . . . . . Robot Schematics Acquired . | . . . . . Robots Built . | . . . . . Authchips . | . . . . . Time . | . . . . . Total Robot Build Rating . | . . . . . Part Schematics Acquired . | . . . . . Parts Built . | . . . . . Authchips . | . . . . . Time . | . . . . . Total Part Build Rating . | . . . . . Parts Repaired . | . . . . . Time . | . . . . . Parts Recycled . | . . . . . Recycled Matter . | . . . . . Retrieved Matter . | . . . . . Retrieved Components . | . . . . . Parts Scanalyzed . | . . . . . Part Schematics Acquired . | . . . . . Parts Damaged . | . . . . . Bothacking | -11 -10 -10 -9 -9 ------------ Run | Yrd Mat Min Mat Sto Used RIF Installer . | . . . . . Robots Hacked . | . . . . . Non-combat . | . . . . . Combat . | . . . . . Robot Hacks Applied . | . . . . . Relay Couplers Released . | . . . . . Fabnet Peak Effective % . | . . . . . Robots Rewired . | . . . . . Allies Hacked . | . . . . . Hacks Repelled . | . . . . . Allies | -11 -10 -10 -9 -9 -------- Run | Yrd Mat Min Mat Sto Total Allies . | . . . . . Largest Group . | . . . . . Highest-Rated Group . | . . . . . Highest-Rated Ally . | . . . . . Total Orders . | . . . . . Ally Attacks . | . . . . . Total Damage . | . . . . . Kills . | . . . . . Allies Corrupted . | . . . . . Allies Melted . | . . . . . Intel | -11 -10 -10 -9 -9 ------- Run | Yrd Mat Min Mat Sto Active Infowar (turns) 345 | . . . 211 134 Sensors 345 | . . . 211 134 Robot Analysis Total . | . . . . . Derelict Logs Recovered 1 | . . 1 . . Drone Launches . | . . . . . Drone Recoveries . | . . . . . Exploration | -11 -10 -10 -9 -9 ------------- Run | Yrd Mat Min Mat Sto Turns Passed 904 | 109 210 150 261 174 Spaces Moved 593 | 74 141 118 151 109 Core 9 | 9 . . . . Treads . | . . . . . Legs 584 | 65 141 118 151 109 Wheels . | . . . . . Hover . | . . . . . Flight . | . . . . . Fastest Speed 50 | 50 120 120 120 120 Average Speed 119 | 112 120 120 120 120 Slowest Speed 120 | 120 120 120 120 120 Overloaded Moves . | . . . . . Propulsion Burnouts . | . . . . . Robots Hopped . | . . . . . Potential Cave-ins . | . . . . . Cave-ins Triggered . | . . . . . Exploration Rate (%) 23 | 5 37 40 12 21 Regions Visited 4 Branch Regions 2 Pre-discovered Areas 2 | . . 2 . . Known Exits Taken . | . . . . . Unknown Exits Taken 4 | 1 1 1 1 . Scrap Searched 1 | . . 1 . . Spaces Dug . | . . . . . Terrain Destroyed . | . . . . . Melee . | . . . . . Projectile . | . . . . . AOE . | . . . . . Terrain Rammed . | . . . . . Walls Destroyed . | . . . . . Machines Disabled . | . . . . . Actions | -11 -10 -10 -9 -9 --------- Run | Yrd Mat Min Mat Sto Total 741 | 99 169 124 216 133 Wait 54 | 8 . . 40 6 Move 589 | 73 140 117 150 109 Hop . | . . . . . Pick Up 29 | 12 9 2 6 . Fast Attach . | . . . . . Attach 17 | 6 1 . 4 6 Detach 1 | . . . 1 . Swap 4 | . 2 . 2 . Drop 13 | . 6 3 4 . Fire 34 | . 11 2 9 12 Melee . | . . . . . Ram . | . . . . . Kick . | . . . . . Crush . | . . . . . Escape Stasis . | . . . . . Rewire . | . . . . . Trap . | . . . . . Miscellaneous . | . . . . . Route ------- -11/Scrapyard -10/Materials (discovered 2 exits: [*Mat] / [*Min]) -10/Mines -9/Materials -9/Storage History --------- Turn | Location | Event 9 | -11/Scrapyard | Discovered new exit (range 15) 110 | -11/Scrapyard | Entered Materials 206 | -10/Materials | Discovered new exit (range 16) 243 | -10/Materials | Met 8R-AWN 303 | -10/Materials | Build established: Mutant 305 | -10/Materials | Discovered new exit (range 14) 320 | -10/Materials | Entered Mines 323 | -10/Mines | Followed 8R-AWN into the Mines 421 | -10/Mines | Assembled infested the area 425 | -10/Mines | Found a Scrap Suit stashed away for nefarious purposes 426 | -10/Mines | Assisted by a Guerilla fighting off Assembled 428 | -10/Mines | Found Scrap Suit 439 | -10/Mines | Discovered new exit (range 15) 450 | -10/Mines | Learned location of Mines (-9) 467 | -10/Mines | Learned location of Storage (-9) 470 | -10/Mines | Entered Materials 470 | -9/Materials | Evolved 2 slots: Propulsion x2 719 | -9/Materials | Discovered new exit (range 11) 731 | -9/Materials | Entered Storage 874 | -9/Storage | Core integrity fell below 50% 881 | -9/Storage | Core integrity fell below 20% 905 | -9/Storage | Destroyed by G-34 Mercenary with Small Laser Last Messages --------------- per-turn energy generation is a net positive, and consider deactivating power-draining parts if not. 00885_ Beam Rifle melted. 00885_ Heat Sink melted. 00885_ Y-45 Defender destroyed. 00886_ Overheating: Energy bleed (-4). 00886_ R-06 Scavenger destroyed. 00886_ R-06 Scavenger collects Ion Engine. 00886_ R-06 Scavenger collects Sml. Storage Unit. 00888_ Acquired 50 matter. 00891_ Med. Laser destroyed. 00898_ M-13 Machinist repairs R-06 Scavenger. 00899_ K-01 Serf collects debris. 00899_ Lgt. Armor Plating destroyed. 00901_ Aluminum Leg destroyed. 00902_ K-01 Serf collects debris. 00904_ Critical hit (Burn: +37). [Achievement: First Step to Greatness] Map ----- +----------------------------------------------------+ | ????????????????????????# #????????????????????? | | ????????????????????????# #????????????????????? | | ????????????????????????# #????????????????????? | | ????????????????????????# #????????????????????? | | ????????????????????????# #????????????????????? | | ????????????????????????# #????????????????????? | | ??????????????########### #????????????????????? | | ??????????????# ^ ## #????????????????????? | | ??????????????# """ ## ##???????????????????? | | ??????????????# """ # #???????????????????? | | ?????????????## """^ # #???????????????????? | | ?????????????# + T #???????????????????? | | ?????????????## """^ # #?#####?????????????? | | ??????????????# """ # ###"""#?????????????? | | ??????????????# """ ## ## #"T"###???????????? | | ??????????????# ## # #???????????? | | ??????????????###"Y"##### # #???????????? | | ????????????????#"""#???# # #???????????? | | ????????????????#####???# # """" #???????????? | | ????????????????????????#rk + """" #???????????? | | ????????????????????????# sg# """" #???????????? | | ????????????????????????# r%# """" #???????????? | | ????????????????????????# +% #???????????? | | ????????????????????????# # #???????????? | | ????????????????????????# ##########???????????? | | ????????????????????????#@gY#????????????????????? | | ????????????????????????# #????????????????????? | | ????????????????????????# gr#????????????????????? | | ????????????????????????#gg #????????????????????? | | ????????????????????????# Ym/????????????????????? | | ????????????????????????# %# ???????????????????? | | ????????????????????????T ###??????????????????? | | ????????????????????????# #????????????????????? | | ????????????????????????#g #????????????????????? | | ???????????????????????? ????????????????????? | | ???????????????????????? ????????????????????? | | ???????????????????????? ????????????????????? | | ???????????????????????? a ???????????????????? | | ????????????????????????? #???????????????????? | | ?????????????????????????#+###???????????????????? | | ?????????????????????????????????????????????????? | | ?????????????????????????????????????????????????? | | ?????????????????????????????????????????????????? | | ?????????????????????????????????????????????????? | | ?????????????????????????????????????????????????? | | ?????????????????????????????????????????????????? | | ?????????????????????????????????????????????????? | | ?????????????????????????????????????????????????? | | ?????????????????????????????????????????????????? | | ?????????????????????????????????????????????????? | +----------------------------------------------------+ Best States ------------- Heat Dissipation 28 Energy Generation 14 Energy Capacity 250 Matter Stores 300 Matter Capacity 300 Sight Range 16 Robot Scan Range 15 Terrain Scan Density 10 Armor Coverage 150 Evasion (%) 55 Item Schematics ----------------- None Robot Schematics ------------------ None Fabricated ------------ Nothing Repaired ---------- Nothing Alien Tech Used ----------------- None Achievements -------------- Crack Shot First Step to Greatness One Hack Too Far Uninvited Guest Challenges ------------ None Game ------ Seed AbsorptionNovaDeconstructor Manual? 0 Play Time 01:19:22 Cumulative 6.3 hours Start 2025.10.13 @ 22:57:47 End 2025.10.19 @ 17:57:14 Sessions 10 Manual Loads 0 Difficulty Rogue Special Mode None Game No. 8 Rogue 8 Adventurer 0 Explorer 0 Win Type - Total 0 Types 0/0/0/0/0/0/0/0/0/0 Lore% 1 Gallery% 5 Achievement% 1 Wizard Run 0 Options --------- Layout 1 ASCII 1 Keyboard 1 Movement Vi Keybinds 0 Fullscreen 2 Font 24/Smallcaps Map View 50x35 Zoom Use 0% Tactical HUD 1 Map Filters NONE Filters NONE Steam 1 RUN: 6f516f05-8518-486f-ab65-3a53560685f3